fUSD/lending_fUSD_20251230
["ID","MTS","AMOUNT","RATE_DAILY","PERIOD"]
[400077914,1767073838257,-100.92175963,0.00016327,2]
[400077915,1767073838268,-500.0,0.00016327,2]
[400077916,1767073838278,-500.0,0.00016327,2]
[400077917,1767073838289,-500.0,0.00016327,2]
[400077918,1767073838299,-470.88448378,0.00016327,2]
[400077919,1767073838314,-29.11551622,0.00016327,2]
[400077920,1767073838324,-416.11936348,0.00016327,2]
[400077921,1767073838337,-83.88063652,0.00016327,2]
[400077922,1767073838346,-184.89369811,0.00016327,2]
[400077923,1767073838358,-273.69175649,0.00016327,2]
[400077924,1767073838370,-226.30824351,0.00016327,2]
[400077925,1767073838380,-500.0,0.00016327,2]
[400077926,1767073838390,-500.0,0.00016327,2]
[400077927,1767073838399,-500.0,0.00016327,2]
[400077928,1767073838409,-500.0,0.00016327,2]
[400077929,1767073838419,-500.0,0.00016327,2]
[400077930,1767073838428,-500.0,0.00016327,2]
[400077931,1767073838438,-500.0,0.00016327,2]
[400077932,1767073838447,-500.0,0.00016327,2]
[400077933,1767073838457,-500.0,0.00016327,2]
[400077934,1767073838467,-500.0,0.00016327,2]
[400077935,1767073838476,-500.0,0.00016327,2]
[400077936,1767073838486,-500.0,0.00016327,2]
[400077937,1767073838496,-500.0,0.00016327,2]
[400077938,1767073838506,-514.81,0.00016327,2]
[400077940,1767073838516,-25392.88175639,0.00016328,2]
[400077942,1767073838527,-4326.46606873,0.00016328,2]
[400077944,1767073838539,-1430.05881722,0.00016328,2]
[400077946,1767073838550,-202103.49965897,0.00016328,2]
[400078115,1767073840239,-2668.58137189,0.00016328,2]
[400078127,1767073840352,-2335.93824332,0.00016328,2]
[400078134,1767073840408,-725.91164319,0.00016328,2]
[400078147,1767073840518,-761016.66244029,0.00016328,2]
[400078149,1767073840529,-3057.3549634,0.00016365,2]
[400078151,1767073840539,-150.0,0.0001642,2]
[400078153,1767073840549,-150.0,0.0001642,2]
[400078155,1767073840559,-150.0,0.0001642,2]
[400078157,1767073840569,-550.0,0.00016426,2]
[400078159,1767073840579,-207.4,0.00016427,2]
[400078161,1767073840590,-500.0,0.00016427,2]
[400078163,1767073840599,-500.0,0.00016427,2]
[400078166,1767073840609,-500.0,0.00016427,2]
[400078168,1767073840620,-500.0,0.00016427,2]
[400078170,1767073840629,-500.0,0.00016427,2]
[400078172,1767073840638,-500.0,0.00016427,2]
[400078174,1767073840648,-500.0,0.00016427,2]
[400078176,1767073840657,-500.0,0.00016427,2]
[400078178,1767073840667,-553.64373807,0.00016427,2]
[400078180,1767073840676,-500.0,0.00016427,2]
[400078182,1767073840686,-500.0,0.00016427,2]
[400078184,1767073840695,-500.0,0.00016427,2]
[400078186,1767073840705,-500.0,0.00016427,2]
[400078188,1767073840714,-500.0,0.00016427,2]
[400078190,1767073840723,-500.0,0.00016427,2]
[400078192,1767073840732,-500.0,0.00016427,2]
[400078194,1767073840742,-500.0,0.00016427,2]
[400078195,1767073840752,-500.0,0.00016427,2]
[400078197,1767073840761,-500.0,0.00016427,2]
[400078199,1767073840771,-500.0,0.00016427,2]
[400078202,1767073840781,-500.0,0.00016427,2]
[400078204,1767073840791,-1088.67069402,0.00016427,2]
[400078206,1767073840801,-500.0,0.00016427,2]
[400078208,1767073840810,-500.0,0.00016427,2]
[400078210,1767073840820,-500.0,0.00016427,2]
[400078212,1767073840830,-500.0,0.00016427,2]
[400078214,1767073840839,-620.0,0.00016427,2]
[400078216,1767073840849,-500.0,0.00016427,2]
[400078218,1767073840858,-500.0,0.00016427,2]
[400078220,1767073840868,-515.06606387,0.00016427,2]
[400078222,1767073840879,-1000.0,0.00016428,2]
[400078224,1767073840889,-1000.0,0.00016428,2]
[400078226,1767073840898,-1000.0,0.00016428,2]
[400078228,1767073840907,-1000.0,0.00016428,2]
[400078230,1767073840917,-1000.0,0.00016428,2]
[400078232,1767073840927,-1000.0,0.00016428,2]
[400078234,1767073840936,-500.0,0.00016438,2]
[400078236,1767073840946,-500.0,0.00016438,2]
[400078238,1767073840955,-500.0,0.00016438,2]
[400078240,1767073840965,-500.0,0.00016438,2]
[400078242,1767073840974,-500.0,0.00016438,2]
[400078244,1767073840983,-500.0,0.00016438,2]
[400078246,1767073840994,-500.0,0.00016438,2]
[400078248,1767073841003,-500.0,0.00016438,2]
[400078250,1767073841012,-500.0,0.00016438,2]
[400078252,1767073841021,-500.0,0.00016438,2]
[400078254,1767073841031,-500.0,0.00016438,2]
[400078256,1767073841040,-500.0,0.00016438,2]
[400078258,1767073841050,-500.0,0.00016438,2]
[400078260,1767073841060,-500.0,0.00016438,2]
[400078262,1767073841070,-500.0,0.00016438,2]
[400078264,1767073841079,-500.0,0.00016438,2]
[400078266,1767073841089,-500.0,0.00016438,2]
[400078268,1767073841099,-497.55788717,0.00016438,2]
[400078270,1767073841109,-500.0,0.00016438,2]
[400078272,1767073841119,-500.0,0.00016438,2]
[400078274,1767073841129,-500.0,0.00016438,2]
[400078276,1767073841139,-500.0,0.00016438,2]
[400078279,1767073841148,-500.0,0.00016438,2]
[400078281,1767073841158,-500.0,0.00016438,2]
[400078283,1767073841167,-500.0,0.00016438,2]
[400078285,1767073841177,-500.0,0.00016438,2]
[400078287,1767073841186,-500.0,0.00016438,2]
[400078289,1767073841195,-500.0,0.00016438,2]
[400078291,1767073841204,-500.0,0.00016438,2]
[400078293,1767073841214,-500.0,0.00016438,2]
[400078295,1767073841223,-500.0,0.00016438,2]
[400078297,1767073841233,-5890.26,0.00016438,2]
[400078299,1767073841242,-190.0,0.0001647,2]
[400078301,1767073841251,-333.36674875,0.00016475,2]
[400078303,1767073841261,-1027.0928,0.00016488,2]
[400078305,1767073841271,-500.0,0.00016528,2]
[400078307,1767073841280,-190.0,0.00016543,2]
[400078309,1767073841290,-190.0,0.00016543,2]
[400078311,1767073841299,-1000.0,0.00016559,2]
[400078313,1767073841312,-150.0,0.00016562,2]
[400078315,1767073841322,-150.0,0.00016562,2]
[400078317,1767073841331,-500.0,0.00016587,2]
[400078319,1767073841341,-500.0,0.00016587,2]
[400078321,1767073841351,-1008.0,0.000166,2]
[400078323,1767073841360,-514.81,0.00016601,2]
[400078325,1767073841370,-3793.11216475,0.0001666,2]
[400078327,1767073841380,-333.36674875,0.00016685,2]
[400078329,1767073841390,-1000.0,0.000167,2]
[400078332,1767073841399,-26305.95401522,0.0001674,2]
[400078334,1767073841409,-605.74148991,0.00016775,2]
[400078336,1767073841419,-151.0,0.00016782,2]
[400078338,1767073841428,-151.0,0.00016782,2]
[400078339,1767073841437,-300.0,0.00016784,2]
[400078341,1767073841447,-675.95048541,0.00016784,2]
[400078343,1767073841457,-500.0,0.00016784,2]
[400078345,1767073841466,-500.0,0.00016784,2]
[400078348,1767073841477,-500.0,0.00016784,2]
[400078350,1767073841487,-291.6638579,0.00016784,2]
[400078352,1767073841496,-500.0,0.00016784,2]
[400078354,1767073841507,-401.10398818,0.00016784,2]
[400078356,1767073841516,-500.0,0.00016784,2]
[400078358,1767073841527,-500.0,0.00016784,2]
[400078360,1767073841537,-271.32764859,0.00016784,2]
[400078362,1767073841547,-462.34335373,0.00016784,2]
[400078364,1767073841556,-285301.929911,0.00016785,2]
[400078366,1767073841566,-9704.1378549,0.00016785,2]
[400078368,1767073841575,-1019.0,0.000168,2]
[400078370,1767073841585,-4718.0,0.00016833,2]
[400078372,1767073841595,-1000.0,0.00016848,2]
[400078374,1767073841604,-200.0,0.00016863,2]
[400078376,1767073841614,-200.0,0.00016864,2]
[400078378,1767073841626,-200.0,0.00016864,2]
[400078380,1767073841635,-514.81,0.00016875,2]
[400078383,1767073841645,-748.01464861,0.00016899,2]
[400078385,1767073841655,-200.0,0.00016899,2]
[400078387,1767073841664,-709.08321159,0.00016899,2]
[400078389,1767073841674,-10000.0,0.000169,2]
[400078391,1767073841683,-667.29180994,0.000169,2]
[400078392,1767073841692,-153.50521254,0.000169,2]
[400078394,1767073841701,-2270.20446947,0.000169,2]
[400078397,1767073841711,-578.81760754,0.00016933,2]
[400078399,1767073841720,-161.24650045,0.00016933,2]
[400078401,1767073841730,-152.0,0.00016933,2]
[400078403,1767073841739,-152.0,0.00016933,2]
[400078405,1767073841749,-152.0,0.00016933,2]
[400078407,1767073841758,-152.0,0.00016933,2]
[400078409,1767073841768,-1258.0,0.00016933,2]
[400078411,1767073841777,-152.0,0.00016933,2]
[400078413,1767073841787,-154.0,0.00016933,2]
[400078415,1767073841796,-1258.0,0.00016933,2]
[400078417,1767073841806,-152.0,0.00016933,2]
[400078419,1767073841815,-158.39713943,0.00016933,2]
[400078421,1767073841825,-1258.0,0.00016933,2]
[400078423,1767073841835,-152.0,0.00016933,2]
[400078425,1767073841844,-1258.0,0.00016933,2]
[400078427,1767073841854,-152.0,0.00016933,2]
[400078429,1767073841863,-304.7615783,0.00016933,2]
[400078431,1767073841874,-152.0,0.00016933,2]
[400078433,1767073841883,-300.12980172,0.00016933,2]
[400078435,1767073841893,-272.0,0.00016945,2]
[400078437,1767073841902,-168.0,0.00016948,2]
[400078439,1767073841912,-574.12855637,0.00016975,2]
[400078441,1767073841921,-151.0,0.00016983,2]
[400078443,1767073841932,-190.0,0.00016984,2]
[400078445,1767073841941,-190.0,0.00016985,2]
[400078447,1767073841950,-300.0,0.00016985,2]
[400078449,1767073841959,-1539.0,0.00016986,2]
[400078451,1767073841969,-106548.94,0.00016986,2]
[400078453,1767073841978,-150.0,0.00016986,2]
[400078455,1767073841988,-150.00000001,0.00016986,2]
[400078457,1767073841998,-150.0,0.00016986,2]
[400078459,1767073842007,-151.50433354,0.00016986,2]
[400078461,1767073842017,-150.0,0.00016986,2]
[400078463,1767073842026,-150.0,0.00016986,2]
[400078465,1767073842035,-150.0,0.00016986,2]
[400078467,1767073842044,-150.0,0.00016986,2]
[400078469,1767073842054,-605.74148991,0.0001699,2]
[400078471,1767073842063,-151.0,0.00016997,2]
[400078473,1767073842072,-151.0,0.00016998,2]
[400078475,1767073842082,-151.0,0.00016998,2]
[400078477,1767073842092,-151.0,0.00016998,2]
[400078479,1767073842102,-151.0,0.00016998,2]
[400078481,1767073842111,-1004.7433,0.00016999,2]
[400078484,1767073842121,-200.77285261,0.00016999,2]
[400078486,1767073842131,-500.0,0.00016999,2]
[400078488,1767073842140,-500.0,0.00016999,2]
[400078490,1767073842149,-239.990413,0.00016999,2]
[400078492,1767073842158,-151.0,0.00016999,2]
[400078494,1767073842167,-151.0,0.00016999,2]
[400078496,1767073842177,-151.0,0.00016999,2]
[400078498,1767073842187,-151.0,0.00016999,2]
[400078500,1767073842197,-500.0,0.00016999,2]
[400078502,1767073842206,-500.0,0.00016999,2]
[400078504,1767073842216,-151.0,0.00016999,2]
[400078506,1767073842226,-300.0,0.00016999,2]
[400078508,1767073842236,-155.530758,0.00016999,2]
[400078510,1767073842245,-151.0,0.00016999,2]
[400078512,1767073842255,-299.632331,0.00016999,2]
[400078514,1767073842264,-299.632331,0.00016999,2]
[400078516,1767073842274,-299.632331,0.00016999,2]
[400078518,1767073842283,-314553.15525933,0.00017,2]
[400078520,1767073842293,-151.0,0.00017,2]
[400078522,1767073842304,-251407.09540482,0.00017,2]
[400078524,1767073842317,-1768815.75934123,0.00017,2]
[400078527,1767073842331,-324.4526,0.00017,2]
[400078529,1767073842342,-258.39013124,0.00017,2]
[400078532,1767073842362,-299.632331,0.00016999,2]
[400078534,1767073842371,-145178.70051211,0.00017,2]
[400078689,1767073843948,-158.79465739,0.000169,2]
[400078691,1767073843958,-560.95002005,0.00017,2]
[400078698,1767073844006,-20986.24357175,0.00017,2]
[400078700,1767073844016,-151.0,0.00017,2]
[400078702,1767073844025,-2000.0,0.00017,2]
[400078704,1767073844035,-151.0,0.00017,2]
[400078706,1767073844045,-151.0,0.00017,2]
[400078708,1767073844054,-165.965481,0.00017,2]
[400078710,1767073844063,-152.739358,0.00017,2]
[400078712,1767073844073,-151.0,0.00017,2]
[400078714,1767073844083,-151.0,0.00017,2]
[400078716,1767073844093,-151.0,0.00017,2]
[400078718,1767073844102,-151.0,0.00017,2]
[400078720,1767073844112,-301.706132,0.00017,2]
[400078722,1767073844121,-151.0,0.00017,2]
[400078724,1767073844132,-154.828137,0.00017,2]
[400078726,1767073844141,-151.903579,0.00017,2]
[400078729,1767073844151,-155.1112,0.00017,2]
[400078731,1767073844161,-1000.0,0.00017,2]
[400078733,1767073844171,-1000.0,0.00017,2]
[400078735,1767073844181,-1000.0,0.00017,2]
[400078737,1767073844190,-1000.0,0.00017,2]
[400078739,1767073844200,-786.132129,0.00017,2]
[400078741,1767073844210,-210.425724,0.00017,2]
[400078743,1767073844219,-250.0,0.00017,2]
[400078745,1767073844229,-151.0,0.00017,2]
[400078747,1767073844239,-156.514504,0.00017,2]
[400078749,1767073844248,-151.0,0.00017,2]
[400078751,1767073844258,-151.0,0.00017,2]
[400078753,1767073844268,-151.0,0.00017,2]
[400078755,1767073844278,-151.0,0.00017,2]
[400078757,1767073844287,-151.00001,0.00017,2]
[400078759,1767073844297,-800.0,0.00017,2]
[400078761,1767073844307,-151.0,0.00017,2]
[400078763,1767073844316,-162.579082,0.00017,2]
[400078765,1767073844327,-151.0,0.00017,2]
[400078767,1767073844337,-151.0,0.00017,2]
[400078769,1767073844346,-178.452385,0.00017,2]
[400078771,1767073844355,-151.0,0.00017,2]
[400078773,1767073844366,-151.0,0.00017,2]
[400078776,1767073844375,-151.0,0.00017,2]
[400078778,1767073844385,-151.0,0.00017,2]
[400078780,1767073844395,-151.0,0.00017,2]
[400078782,1767073844405,-151.0,0.00017,2]
[400078784,1767073844414,-151.0,0.00017,2]
[400078785,1767073844424,-151.0,0.00017,2]
[400078788,1767073844434,-151.0,0.00017,2]
[400078790,1767073844444,-151.0,0.00017,2]
[400078792,1767073844454,-183.437721,0.00017,2]
[400078794,1767073844464,-151.0,0.00017,2]
[400078796,1767073844473,-151.0,0.00017,2]
[400078798,1767073844483,-299.632331,0.00017,2]
[400078800,1767073844493,-299.632331,0.00017,2]
[400078802,1767073844502,-157.814423,0.00017,2]
[400078804,1767073844512,-299.632331,0.00017,2]
[400078806,1767073844521,-299.632331,0.00017,2]
[400078808,1767073844532,-299.632331,0.00017,2]
[400078810,1767073844542,-299.632331,0.00017,2]
[400078812,1767073844552,-299.632331,0.00017,2]
[400078814,1767073844562,-299.632331,0.00017,2]
[400078816,1767073844571,-299.632331,0.00017,2]
[400078818,1767073844580,-299.632331,0.00017,2]
[400078820,1767073844590,-299.632331,0.00017,2]
[400078823,1767073844599,-299.632331,0.00017,2]
[400078825,1767073844609,-151.0,0.00017,2]
[400078826,1767073844618,-947.46558491,0.00017048,2]
[400078829,1767073844630,-190.0,0.00017067,2]
[400078831,1767073844639,-190.0,0.00017078,2]
[400078833,1767073844649,-190.0,0.00017084,2]
[400078835,1767073844658,-514.81,0.00017149,2]
[400078837,1767073844670,-16059.44863958,0.00017213,2]
[400078839,1767073844680,-9421.70108035,0.00017213,2]
[400078841,1767073844689,-225.19,0.00017291,2]
[400078843,1767073844698,-1000.0,0.0001732,2]
[400078845,1767073844708,-360.07,0.00017353,2]
[400078847,1767073844717,-514.81,0.00017423,2]
[400078849,1767073844727,-3322.6,0.00017427,2]
[400078851,1767073844736,-167.6,0.00017432,2]
[400078853,1767073844745,-190.0,0.00017446,2]
[400078855,1767073844755,-595.37131296,0.00017523,2]
[400078857,1767073844764,-334.0,0.00017543,2]
[400078859,1767073844774,-190.0,0.00017669,2]
[400078861,1767073844783,-190.0,0.00017682,2]
[400078863,1767073844792,-514.84,0.00017697,2]
[400078865,1767073844802,-168.0,0.00017735,2]
[400078867,1767073844812,-163.76,0.00017738,2]
[400078869,1767073844821,-642.94,0.00017796,2]
[400078871,1767073844832,-250.0,0.00017912,2]
[400078873,1767073844841,-617.40005154,0.00018071,2]
[400078875,1767073844851,-600.0,0.00018082,2]
[400078877,1767073844861,-802.49697305,0.00018096,2]
[400078879,1767073844871,-16059.44863958,0.00018162,2]
[400078881,1767073844882,-161.55604579,0.000182,14]
[400078882,1767073844892,-640.24385345,0.00018619,2]
[400078894,1767073845046,-163.76,0.00018625,2]
[400078897,1767073845087,-225.19,0.00018661,2]
[400078899,1767073845098,-600.0,0.0001876,2]
[400078902,1767073845108,-167.6,0.00018761,2]
[400078904,1767073845118,-154.03,0.000188,2]
[400078906,1767073845128,-154.03,0.000188,2]
[400078908,1767073845137,-317.47275185,0.0001891,2]
[400078910,1767073845146,-63659.4653117,0.00018911,2]
[400078912,1767073845155,-203.68869024,0.00019,2]
[400078914,1767073845164,-746.1437755,0.00019065,2]
[400078916,1767073845173,-16059.44863958,0.0001911,2]
[400078918,1767073845183,-160.0,0.00019151,2]
[400078920,1767073845193,-248.89223591,0.00019165,2]
[400078922,1767073845203,-192.63050498,0.00019167,2]
[400078924,1767073845213,-1000.0,0.00019244,2]
[400078926,1767073845223,-360.07,0.00019281,2]
[400078928,1767073845232,-500.94261419,0.00019333,2]
[400078930,1767073845241,-151.0,0.00019339,2]
[400078932,1767073845251,-151.0,0.00019339,2]
[400078934,1767073845260,-151.0,0.00019339,2]
[400078936,1767073845270,-6706.67,0.00019339,2]
[400078938,1767073845280,-9999.99,0.00019339,2]
[400078940,1767073845290,-150.99,0.00019339,2]
[400078942,1767073845299,-2165.2858336,0.00019351,2]
[400078944,1767073845309,-163.70604612,0.00019382,2]
[400078946,1767073845319,-14204.3466899,0.00019385,2]
[400078949,1767073845331,-600.0,0.00019438,2]
[400078951,1767073845341,-163.76,0.00019512,2]
[400078953,1767073845350,-176.210031,0.00019518,2]
[400078955,1767073845360,-166.4871801,0.00019548,2]
[400078957,1767073845371,-3322.6,0.0001974,2]
[400078959,1767073845383,-849.0,0.000198,2]
[400078961,1767073845399,-977.0,0.000198,2]
[400078963,1767073845410,-306.0,0.000198,2]
[400078965,1767073845419,-483.1405748,0.00019923,2]
[400078967,1767073845429,-540.36332865,0.0002,5]
[400078969,1767073845438,-5351.8569693,0.0002,2]
[400078971,1767073845447,-1000.0,0.0002,7]
[400078973,1767073845456,-1699.25363931,0.00020054,2]
[400078975,1767073845465,-16059.44863958,0.00020058,2]
[400078977,1767073845475,-600.0,0.00020116,2]
[400078979,1767073845488,-315.67,0.00020187,2]
[400078981,1767073845501,-151.0,0.00020304,2]
[400078983,1767073845511,-163.76,0.00020399,2]
[400078985,1767073845519,-192.65,0.00020548,2]
[400078987,1767073845529,-2000.0,0.000207,2]
[400078989,1767073845538,-600.0,0.00020795,2]
[400078991,1767073845546,-64938.83590263,0.000209,30]
[400079006,1767073845705,-151.0,0.00017,2]
[400079008,1767073845715,-8162.48104158,0.000209,30]
[400079010,1767073845724,-299.632331,0.000209,2]
[400079012,1767073845734,-299.632331,0.000209,2]
[400079013,1767073845743,-299.632331,0.000209,2]
[400079015,1767073845753,-299.632339,0.000209,2]
[400079017,1767073845762,-160.0,0.00021,7]
[400079019,1767073845772,-5552.53809186,0.00021007,2]
[400079071,1767073846252,-1000.0,0.00016228,2]
[400079073,1767073846262,-163.33312598,0.000169,2]
[400079075,1767073846272,-10506.91054772,0.00021007,2]
[400079078,1767073846282,-1939.356,0.00021137,2]
[400079080,1767073846292,-281.828,0.00021137,2]
[400079082,1767073846303,-1000.0,0.00021169,2]
[400079083,1767073846313,-360.07,0.00021209,2]
[400079086,1767073846323,-163.76,0.00021286,2]
[400079087,1767073846336,-165.94380969,0.0002157,2]
[400079090,1767073846345,-5000.0,0.00021918,2]
[400079091,1767073846355,-1693.55,0.0002192,2]
[400079093,1767073846364,-1693.55,0.0002192,2]
[400079095,1767073846375,-1693.55,0.0002192,2]
[400079097,1767073846384,-1693.55,0.0002192,2]
[400079100,1767073846393,-1693.55,0.0002192,2]
[400079101,1767073846404,-151.0,0.00022,2]
[400079104,1767073846414,-158.79465734,0.00022078,2]
[400079105,1767073846423,-163.76,0.00022173,2]
[400079107,1767073846432,-1918.08,0.00022375,2]
[400079109,1767073846441,-163.76,0.0002306,2]
[400079111,1767073846451,-1000.0,0.00023093,2]
[400079113,1767073846461,-360.07,0.00023137,2]
[400079116,1767073846470,-10000.0,0.0002333,2]
[400079118,1767073846480,-10000.0,0.0002333,2]
[400079119,1767073846489,-10000.0,0.0002333,2]
[400079121,1767073846498,-5601.1014714,0.0002333,2]
[400079124,1767073846509,-366.6881772,0.0002333,2]
[400080156,1767074226354,151.8844778,0.0003013,120]
[400080166,1767074491905,1736.36685274,0.00013,3]
[400080179,1767074831139,-209.68,0.000162,2]
[400080180,1767074831159,-366.86009232,0.000162,2]
[400080181,1767074831181,-286.0,0.000162,2]
[400080182,1767074831203,-1092.81056482,0.00016365,2]
[400080183,1767074836085,-641.65250678,0.00016365,2]
[400080184,1767074836107,-164.87,0.00016712,2]
[400080185,1767074836141,-151.0,0.00016758,2]
[400080186,1767074836170,-151.0,0.00016758,2]
[400080187,1767074836197,-151.0,0.00016758,2]
[400080188,1767074836222,-151.0,0.0001676,2]
[400080189,1767074836245,-952.0,0.00016899,2]
[400080190,1767074836268,-4928.61890185,0.000169,2]
[400080192,1767074861456,1964.29,0.00030137,120]
[400080262,1767075031392,-704.890961,0.000169,2]
[400080263,1767075031405,-259.11,0.000169,2]
[400080264,1767075031419,-4107.38013715,0.000169,2]
[400080265,1767075031428,-1462.44888514,0.00017,2]
[400080266,1767075031440,-537.55111486,0.00017,2]
[400080267,1767075031449,-168.0,0.00017379,2]
[400080268,1767075031459,-2768.8,0.00017414,2]
[400080269,1767075031469,-2500.0,0.00017651,2]
[400080270,1767075031479,-6423.77945585,0.00017687,2]
[400080271,1767075031489,-1274.4402295,0.00017687,2]
[400080272,1767075031498,-9160.19672432,0.00017687,2]
[400080274,1767075031508,-286.845,0.0001772,2]
[400080275,1767075031518,-1711.799,0.0001772,2]
[400080276,1767075031528,-300.0,0.00017739,2]
[400080277,1767075031538,-278.68,0.0001774,2]
[400080278,1767075031547,-628.41134831,0.0001774,2]
[400080279,1767075031558,-500.0,0.0001774,2]
[400080281,1767075031568,-500.0,0.0001774,2]
[400080283,1767075031578,-500.0,0.0001774,2]
[400080284,1767075031588,-500.0,0.0001774,2]
[400080285,1767075031598,-500.0,0.0001774,2]
[400080286,1767075031607,-500.0,0.0001774,2]
[400080287,1767075031617,-200.0,0.0001774,2]
[400080288,1767075031626,-500.0,0.0001774,2]
[400080289,1767075031636,-185.5213676,0.0001774,2]
[400080290,1767075031646,-500.0,0.0001774,2]
[400080292,1767075031660,-500.0,0.0001774,2]
[400080294,1767075031669,-500.0,0.0001774,2]
[400080296,1767075031679,-616.58755216,0.0001774,2]
[400080299,1767075031692,-500.0,0.0001774,2]
[400080301,1767075031703,-500.0,0.0001774,2]
[400080303,1767075031712,-500.0,0.0001774,2]
[400080305,1767075031722,-500.0,0.0001774,2]
[400080307,1767075031733,-629.29506453,0.0001774,2]
[400080309,1767075031743,-500.0,0.0001775,2]
[400080311,1767075031752,-500.0,0.0001775,2]
[400080312,1767075031762,-209.28,0.00017787,3]
[400080313,1767075031771,-250.0,0.00017797,2]
[400080314,1767075031781,-250.0,0.00017797,2]
[400080315,1767075031790,-250.0,0.00017797,2]
[400080316,1767075031799,-250.0,0.00017797,2]
[400080317,1767075031809,-168.0,0.00017849,2]
[400080318,1767075031818,-278.68,0.00018014,2]
[400080319,1767075031827,-278.68,0.00018288,2]
[400080320,1767075031837,-168.0,0.0001835,2]
[400080321,1767075031846,-620.86211664,0.00018477,2]
[400080322,1767075031855,-195.0,0.00018477,2]
[400080323,1767075031865,-250.0,0.00018477,2]
[400080324,1767075031874,-168.0,0.00018484,2]
[400080325,1767075031883,-163.76,0.00018652,2]
[400080326,1767075031893,-972.91,0.00018867,2]
[400080327,1767075031902,-150.59000741,0.0001955,5]
[400080328,1767075031911,-500.0,0.00019728,2]
[400080329,1767075031921,-781.87224748,0.00019728,2]
[400080330,1767075031933,-1986.92775252,0.00019728,2]
[400080331,1767075031943,-6423.77945583,0.00020473,2]
[400080332,1767075031951,-2321.19296652,0.00020473,2]
[400080333,1767075031963,-593.68559843,0.00020473,2]
[400080341,1767075037422,-3153.94450525,0.00020473,2]
[400080342,1767075037435,-990.98677168,0.00020473,2]
[400080343,1767075037532,-825.13,0.00020473,2]
[400080344,1767075037544,-292.696336,0.00020473,2]
[400080530,1767075039452,-151.0,0.00017614,2]
[400080532,1767075039463,-982.56054635,0.00020473,2]
[400080534,1767075039472,-200.0,0.00020527,2]
[400080536,1767075039482,-2000.0,0.000207,2]
[400080538,1767075039492,-828.33,0.00020962,2]
[400080540,1767075039501,-1274.44022948,0.0002127,2]
[400080543,1767075039524,-496.5189457,0.00021356,2]
[400080545,1767075039534,-2788.45741159,0.00021356,2]
[400080548,1767075039547,-2187.31360571,0.00021356,2]
[400080551,1767075039570,-14437.9937805,0.00021356,2]
[400080553,1767075039579,-5000.0,0.00021918,2]
[400080555,1767075039589,-2768.8,0.00022042,2]
[400080557,1767075039599,-294.07339406,0.00022194,2]
[400080559,1767075039609,-152.2494733,0.00022533,2]
[400080562,1767075039619,-661.7885025,0.00022589,2]
[400080564,1767075039630,-506.78496433,0.00022862,2]
[400080566,1767075039640,-2764.5316321,0.00022863,2]
[400080568,1767075039650,-1000.0,0.00023,2]
[400080570,1767075039663,-1069.36344,0.000231,2]
[400080572,1767075039673,-1069.36345,0.000231,2]
[400080574,1767075039683,-288.53198062,0.000231,2]
[400080578,1767075039719,-780.83145938,0.000231,2]
[400080579,1767075039728,-170.51378727,0.000231,2]